bitfinex-derivatives/quotes_BTCF0:USTF0_20260106
["timestamp","ask_amount","ask_price","bid_price","bid_amount"]
[1767710166011,0.10127322,94218.0,94192.0,0.010619]
[1767710166209,0.09028,94217.0,94191.0,0.100899]
[1767710166411,0.100896,94217.0,94191.0,0.09028]
[1767710166606,0.09028,94217.0,94198.0,0.010618]
[1767710166801,0.09028,94217.0,94194.0,0.010618]
[1767710167007,0.09065722,94216.0,94191.0,0.09028]
[1767710167414,0.09065722,94216.0,94195.0,0.010618]
[1767710167612,0.09065722,94216.0,94191.0,0.09028]
[1767710167910,0.09028,94217.0,94172.0,0.07474499]
[1767710167911,0.09065722,94199.0,94179.0,0.09028]
[1767710168108,0.10127522,94199.0,94179.0,0.07866]
[1767710168305,0.09065722,94219.0,94183.0,0.06662114]
[1767710168507,0.010616,94217.0,94184.0,0.01984295]
[1767710168709,0.09028,94216.0,94184.0,0.01984295]
[1767710168904,0.09028,94216.0,94195.0,0.010618]
[1767710169210,0.10127322,94218.0,94194.0,0.010618]
[1767710169414,0.010616,94216.0,94190.0,0.010619]
[1767710169911,0.09028,94217.0,94190.0,0.09028]
[1767710170111,0.09065722,94218.0,94191.0,0.010619]
[1767710170412,0.09028,94228.0,94209.0,0.010617]
[1767710170616,0.09028,94228.0,94206.0,0.010617]
[1767710170812,0.10127222,94224.0,94202.0,0.09028]
[1767710171018,0.09065722,94222.0,94200.0,0.09028]
[1767710171207,0.10127322,94221.0,94200.0,0.09028]
[1767710171404,0.09065722,94221.0,94200.0,0.09028]
[1767710171611,0.09065722,94221.0,94206.0,0.010617]
[1767710172007,0.09028,94228.0,94212.0,0.010616]
[1767710172322,0.09065722,94230.0,94217.0,0.010616]
[1767710172510,0.09065722,94230.0,94210.0,0.010617]
[1767710173020,0.09065722,94230.0,94200.0,0.18931395]
[1767710173517,0.09065722,94230.0,94210.0,0.010617]
[1767710173818,0.010613,94247.0,94200.0,0.18931395]
[1767710173819,0.09028,94247.0,94228.0,0.010615]
[1767710174020,0.09028,94247.0,94229.0,0.010615]
[1767710174614,0.010612,94252.0,94225.0,0.010615]
[1767710174817,0.09028,94256.0,94223.0,0.09028]
[1767710175019,0.00212182,94259.0,94237.0,0.010614]
[1767710175316,0.07637853,94256.0,94229.0,0.010614]
[1767710175518,0.010612,94253.0,94229.0,0.010614]
[1767710175715,0.010613,94244.0,94217.0,0.010616]
[1767710175914,0.010613,94244.0,94214.0,0.32483635]
[1767710175915,0.09065722,94245.0,94220.0,0.010616]
[1767710176117,0.09065722,94245.0,94218.0,0.24954151]
[1767710176419,0.09028,94251.0,94239.0,0.010613]
[1767710176614,0.06576653,94258.0,94229.0,0.09028]
[1767710176821,0.09028,94257.0,94237.0,0.010614]
[1767710177717,0.09240182,94259.0,94237.0,0.010614]
[1767710178118,8.2e-07,94259.0,94258.0,0.010611]
[1767710178314,0.06576653,94279.0,94240.0,0.09903395]
[1767710178315,0.09028,94269.0,94247.0,0.010612]
[1767710178520,0.09028,94268.0,94245.0,0.010613]
[1767710179126,0.09028,94268.0,94240.0,0.18931395]
[1767710179322,0.09028,94268.0,94243.0,0.09903395]
[1767710179529,0.09028,94268.0,94252.0,0.010612]
[1767710179828,0.09028,94268.0,94250.0,0.010612]
[1767710180026,0.10126722,94273.0,94250.0,0.010612]
[1767710180236,0.01061,94271.0,94250.0,0.010612]
[1767710180525,0.09065722,94263.0,94228.0,0.17430378]
[1767710180724,0.010612,94256.0,94232.0,0.010614]
[1767710180914,0.010612,94251.0,94225.0,0.010615]
[1767710181119,0.010612,94251.0,94227.0,0.010615]
[1767710181432,0.010612,94251.0,94228.0,0.09028]
[1767710181628,0.09065722,94256.0,94232.0,0.010614]
[1767710181820,0.010612,94255.0,94233.0,0.010614]
[1767710182129,0.010612,94255.0,94228.0,0.09028]
[1767710182130,0.09065722,94254.0,94228.0,0.09028]
[1767710182320,0.09065722,94251.0,94228.0,0.09028]
[1767710182624,0.010612,94249.0,94228.0,0.09028]
[1767710182816,0.18089722,94249.0,94222.0,0.010615]
[1767710183018,0.010614,94236.0,94222.0,0.09024]
[1767710183218,0.09065722,94232.0,94214.0,0.09024]
[1767710183425,0.10127122,94231.0,94214.0,0.09024]
[1767710183624,0.010615,94227.0,94214.0,0.09024]
[1767710183826,0.09065722,94231.0,94207.0,0.09024]
[1767710184123,0.09065722,94231.0,94199.0,0.09903395]
[1767710184124,0.010615,94225.0,94199.0,0.09903395]
[1767710184327,0.09024,94236.0,94205.0,0.09024]
[1767710184328,0.010615,94226.0,94205.0,0.09024]
[1767710184630,0.10127222,94226.0,94205.0,0.09024]
[1767710184830,0.010615,94230.0,94205.0,0.09024]
[1767710185028,0.06576653,94234.0,94200.0,0.09903395]
[1767710185235,0.09065722,94223.0,94201.0,0.09024]
[1767710185422,0.09065722,94223.0,94198.0,0.09024]
[1767710185623,0.06576653,94225.0,94199.0,0.010618]
[1767710185624,0.18089722,94222.0,94199.0,0.010618]
[1767710185831,0.09065722,94221.0,94198.0,0.09024]
[1767710186327,0.010615,94230.0,94205.0,0.010617]
[1767710186534,0.10127222,94230.0,94201.0,0.010618]
[1767710186735,0.010615,94228.0,94201.0,0.010618]
[1767710186924,0.09065722,94227.0,94201.0,0.010618]
[1767710187326,0.09065722,94222.0,94198.0,0.09024]
[1767710187529,0.09065722,94222.0,94199.0,0.010618]
[1767710187730,0.09024,94229.0,94199.0,0.010618]
[1767710187731,0.09024,94229.0,94199.0,0.09903395]
[1767710187930,0.010615,94228.0,94203.0,0.010617]
[1767710188140,0.09065722,94222.0,94191.0,8.056e-05]
[1767710188436,0.010616,94215.0,94192.0,0.09028]
[1767710188637,0.010617,94212.0,94191.0,8.056e-05]
[1767710188936,0.09065722,94212.0,94191.0,8.056e-05]
[1767710189127,0.06576653,94231.0,94194.0,0.06662114]
[1767710189330,0.010612,94248.0,94191.0,8.056e-05]
[1767710189331,0.09065722,94216.0,94191.0,8.056e-05]
[1767710189535,0.09028,94220.0,94193.0,0.09903395]
[1767710189729,0.09028,94220.0,94194.0,0.010618]
[1767710189936,0.09028,94220.0,94193.0,0.09903395]
[1767710190137,0.09028,94220.0,94198.0,0.010618]
[1767710190627,0.09028,94220.0,94197.0,0.010618]
[1767710190829,0.09028,94226.0,94211.0,0.010617]
[1767710191038,0.09028,94226.0,94201.0,0.09903395]
[1767710191332,0.09028,94227.0,94207.0,0.010617]
[1767710191536,0.010614,94237.0,94205.0,0.09644091]
[1767710191739,0.010614,94235.0,94205.0,0.09644091]
[1767710191943,0.010614,94235.0,94210.0,0.010617]
[1767710192135,0.09028,94236.0,94205.0,0.09644091]
[1767710192341,0.09028,94236.0,94206.0,0.17171074]
[1767710192630,0.09028,94236.0,94207.0,0.07526983]
[1767710192931,0.100894,94236.0,94208.0,0.07526983]
[1767710193125,0.1564911,94231.0,94208.0,0.07526983]
[1767710193349,0.0910335,94229.0,94207.0,0.100897]
[1767710193747,0.0910335,94226.0,94207.0,0.09028]
[1767710193941,0.0910335,94224.0,94207.0,0.16554983]
[1767710194141,0.0910335,94223.0,94211.0,0.05643007]
[1767710194342,0.0910335,94221.0,94210.0,0.05643007]
[1767710194546,0.0910335,94218.0,94198.0,0.07526983]
[1767710195047,0.09028,94225.0,94203.0,0.07526983]
[1767710195254,0.09028,94225.0,94202.0,0.07526983]
[1767710195552,0.1813135,94225.0,94202.0,0.07526983]
[1767710195751,0.0910335,94224.0,94199.0,0.07526983]
[1767710196154,0.010616,94216.0,94197.0,0.09028]
[1767710196745,0.09028,94225.0,94197.0,0.09028]
[1767710196746,0.09028,94225.0,94198.0,0.13868343]
[1767710196945,0.09028,94225.0,94203.0,0.010617]
[1767710197149,0.010614,94236.0,94210.0,0.010617]
[1767710197342,0.09028,94235.0,94212.0,0.010616]
[1767710197553,0.010614,94231.0,94207.0,0.09644091]
[1767710197842,0.0910335,94234.0,94207.0,0.09644091]
[1767710198039,0.0910335,94234.0,94205.0,0.07526983]
[1767710198240,0.1016475,94231.0,94208.0,0.07526983]
[1767710198448,0.1016485,94228.0,94207.0,0.07526983]
[1767710198640,0.1016485,94228.0,94203.0,0.010617]
[1767710198641,0.1016485,94228.0,94206.0,0.07526983]
[1767710199051,0.1016485,94225.0,94206.0,0.07526983]
[1767710199251,0.0910335,94225.0,94208.0,0.07526983]
[1767710199550,0.09028,94230.0,94208.0,0.07526983]
[1767710199856,0.09028,94230.0,94210.0,0.010617]
[1767710200047,0.0910335,94229.0,94207.0,0.07526983]
[1767710200246,0.0910335,94229.0,94196.0,0.09644091]
[1767710200247,0.0910335,94228.0,94212.0,0.010616]
[1767710200447,0.09028,94230.0,94212.0,0.07526983]
[1767710200755,0.100894,94230.0,94210.0,0.07526983]
[1767710201259,0.0910335,94221.0,94196.0,0.09428705]
[1767710201561,0.0910335,94221.0,94199.0,0.010618]
[1767710201749,0.0910335,94221.0,94195.0,0.10490505]
[1767710202057,0.088911,94221.0,94195.0,0.10490505]
[1767710202256,0.010616,94220.0,94196.0,0.09428705]
[1767710202557,0.010616,94218.0,94195.0,0.09428705]
[1767710202758,0.010616,94218.0,94194.0,0.09028]
[1767710202954,0.15055341,94217.0,94191.0,8.056e-05]
[1767710203155,0.06027341,94207.0,94180.0,0.09428705]
[1767710203362,0.06027341,94207.0,94176.0,0.09028]
[1767710203363,0.100897,94206.0,94179.0,0.10490705]
[1767710203862,0.010618,94203.0,94179.0,0.01062]
[1767710204247,0.1813135,94206.0,94178.0,0.01062]
[1767710204248,9.614e-05,94202.0,94178.0,0.01062]
[1767710204556,9.614e-05,94202.0,94186.0,0.010619]
[1767710204962,9.614e-05,94202.0,94182.0,0.01062]
[1767710205455,9.614e-05,94202.0,94190.0,0.010619]
[1767710205660,0.07105874,94206.0,94190.0,0.09644091]
[1767710205857,0.09028,94212.0,94190.0,0.09644091]
[1767710206254,0.09028,94212.0,94187.0,0.1643126]
[1767710207053,0.09028,94212.0,94191.0,0.010619]
[1767710207256,0.0910335,94221.0,94195.0,0.09644091]
[1767710207461,0.09028,94220.0,94199.0,0.09644091]
[1767710207664,0.09028,94219.0,94199.0,0.09644091]
[1767710208155,0.0910335,94230.0,94201.0,0.09644091]
[1767710208467,0.09028,94225.0,94201.0,0.09644091]
[1767710208660,0.100895,94225.0,94201.0,0.09644091]
[1767710209063,0.100895,94225.0,94201.0,0.10705891]
[1767710209365,0.09028,94225.0,94210.0,0.010617]
[1767710209660,0.0541712,94228.0,94202.0,0.010618]
[1767710209966,0.0910335,94229.0,94199.0,0.09028]
[1767710209967,0.09028,94232.0,94201.0,0.15985451]
[1767710210262,0.010614,94235.0,94211.0,0.010617]
[1767710210564,0.0910335,94237.0,94211.0,0.09644091]
[1767710211064,0.0910335,94237.0,94218.0,0.07535754]
[1767710211260,0.1016475,94237.0,94219.0,0.07535754]
[1767710211562,0.010614,94232.0,94217.0,0.07535754]
[1767710211763,0.010614,94232.0,94203.0,0.09644091]
[1767710211764,0.1813135,94232.0,94205.0,0.09428705]
[1767710211959,0.010615,94223.0,94204.0,0.09428705]
[1767710212161,0.0910335,94229.0,94205.0,0.09428705]
[1767710212359,0.010617,94207.0,94195.0,0.13004931]
[1767710212561,0.0910335,94214.0,94195.0,0.13004931]
[1767710212759,0.0910335,94214.0,94181.0,0.01062]
[1767710212760,0.0910335,94205.0,94181.0,0.1321043]
[1767710212961,0.010618,94200.0,94181.0,0.1321043]
[1767710213157,0.010618,94200.0,94175.0,0.09644091]
[1767710213361,0.0910335,94203.0,94175.0,0.09644091]
[1767710213961,0.1016515,94203.0,94179.0,0.01062]
[1767710214170,0.0910335,94203.0,94179.0,0.01062]
[1767710214855,0.09028,94204.0,94179.0,0.01062]
[1767710215061,0.09028,94204.0,94179.0,0.09644091]
[1767710215772,0.1016515,94201.0,94171.0,0.09028]
[1767710216064,0.010618,94198.0,94175.0,0.010621]
[1767710216770,0.010618,94198.0,94171.0,0.19284608]
[1767710217163,0.010618,94198.0,94173.0,0.10256608]
[1767710217462,0.09028,94204.0,94177.0,0.09194508]
[1767710217657,0.010618,94203.0,94180.0,0.01062]
[1767710217858,0.09028,94204.0,94177.0,0.09194508]
[1767710218165,0.010617,94208.0,94186.0,0.010619]
[1767710218463,0.010617,94206.0,94183.0,0.1009]
[1767710218663,0.010617,94209.0,94186.0,0.010619]
[1767710218964,0.010615,94223.0,94202.0,0.06359643]
[1767710219159,0.010615,94223.0,94202.0,0.15387643]
[1767710219357,0.010615,94223.0,94202.0,0.06359643]
[1767710219959,0.010616,94221.0,94203.0,0.09028]
[1767710220268,0.09028,94229.0,94203.0,0.09028]
[1767710220464,0.18746755,94307.0,94203.0,0.09028]
[1767710220465,0.09862649,94243.0,94206.0,0.15554151]
[1767710220669,0.09028,94244.0,94218.0,0.06359643]
[1767710220855,0.09862649,94252.0,94219.0,0.18222508]
[1767710221062,0.010613,94247.0,94222.0,0.010615]
[1767710221260,0.010613,94243.0,94219.0,0.18222508]
[1767710221466,0.09028,94253.0,94219.0,0.18222508]
[1767710221467,0.09821866,94250.0,94219.0,0.18222508]
[1767710221667,0.09821866,94250.0,94204.0,0.13193999]
[1767710221668,0.010614,94232.0,94209.0,0.07538434]
[1767710221872,0.09821866,94237.0,94210.0,0.09028]
[1767710222061,0.010614,94235.0,94211.0,0.09352281]
[1767710222255,0.09028,94238.0,94211.0,0.09352281]
[1767710222463,0.010614,94237.0,94212.0,0.09028]
[1767710222670,0.09028,94238.0,94212.0,0.09028]
[1767710222869,0.010614,94237.0,94212.0,0.09028]
[1767710223273,0.09821866,94237.0,94206.0,0.07538434]
[1767710223471,0.09821866,94237.0,94207.0,0.16566434]
[1767710223674,0.09821866,94245.0,94213.0,0.09352281]
[1767710223878,0.09028,94244.0,94213.0,0.09352281]
[1767710224064,0.09028,94244.0,94207.0,0.16566434]
[1767710224065,0.09821866,94239.0,94210.0,0.061524]
[1767710224268,0.010614,94236.0,94211.0,0.09352281]
[1767710224468,0.010614,94233.0,94211.0,0.09352281]
[1767710224773,0.09821866,94239.0,94207.0,0.09028]
[1767710224774,0.010614,94231.0,94207.0,0.09028]
[1767710225076,0.06250911,94243.0,94207.0,0.09028]
[1767710225077,0.010614,94238.0,94213.0,0.15504681]
[1767710225267,0.16072777,94235.0,94209.0,0.07538434]
[1767710225467,0.09821866,94219.0,94196.0,0.07538434]
[1767710225663,0.09821866,94219.0,94194.0,0.09028]
[1767710225867,0.09821866,94228.0,94201.0,0.09352281]
[1767710226075,0.010615,94222.0,94202.0,0.09352281]
[1767710226270,0.09028,94227.0,94194.0,0.18380281]
[1767710226271,0.010616,94219.0,94194.0,0.18380281]
[1767710226575,0.09821866,94215.0,94190.0,0.07538434]
[1767710226770,0.010615,94229.0,94198.0,0.061524]
[1767710227074,0.09028,94228.0,94205.0,0.09352281]
[1767710227372,0.09821866,94217.0,94200.0,0.09028]
[1767710227566,0.09821866,94217.0,94191.0,0.07538434]
[1767710227567,0.10883466,94216.0,94192.0,0.010619]
[1767710227770,0.010614,94231.0,94189.0,0.09028]
[1767710227771,0.010617,94207.0,94189.0,0.09028]
[1767710227967,0.09821866,94210.0,94189.0,0.09028]
[1767710228167,0.010617,94209.0,94189.0,0.09028]
[1767710228364,0.010617,94206.0,94189.0,0.09028]
[1767710228775,0.010617,94206.0,94177.0,0.061524]
[1767710228776,0.10883666,94203.0,94184.0,0.09028]
[1767710228969,0.010617,94208.0,94184.0,0.09028]
[1767710229168,0.09028,94213.0,94184.0,0.0665]
[1767710229169,0.10883566,94206.0,94184.0,0.0665]
[1767710229366,0.10883666,94203.0,94184.0,0.0665]
[1767710229769,0.09821866,94203.0,94184.0,0.0665]
[1767710229965,0.09821866,94203.0,94180.0,0.01062]
[1767710230172,0.09821866,94202.0,94176.0,0.09028]
[1767710230375,0.09821866,94199.0,94177.0,0.01062]
[1767710230566,0.09028,94202.0,94177.0,0.1009]
[1767710230771,0.09028,94202.0,94182.0,0.01062]
[1767710230971,0.010617,94204.0,94179.0,0.01062]
[1767710231670,0.010618,94199.0,94177.0,0.15504681]
[1767710231976,0.09821866,94203.0,94178.0,0.09028]
[1767710232375,0.09821866,94199.0,94171.0,0.010621]
[1767710232570,0.09821866,94191.0,94172.0,0.09028]
[1767710232779,0.06250911,94198.0,94166.0,0.09028]
[1767710232780,0.09821866,94187.0,94166.0,0.09028]
[1767710232975,0.09821866,94179.0,94145.0,0.061524]
[1767710233182,0.47644,94201.0,94139.0,0.00212453]
[1767710233183,0.010622,94160.0,94146.0,0.09028]
[1767710233374,0.09028,94172.0,94145.0,0.09028]
[1767710233578,0.09821866,94169.0,94145.0,0.09028]
[1767710234079,0.10884166,94157.0,94139.0,0.00212453]
[1767710234871,0.010623,94153.0,94139.0,0.00212453]
[1767710235083,0.10884166,94152.0,94139.0,0.00212453]
[1767710235281,0.09821866,94152.0,94139.0,0.00212453]
[1767710236085,0.010623,94151.0,94131.0,0.09028]
[1767710236286,0.09821866,94152.0,94131.0,0.09028]
[1767710236983,0.010624,94148.0,94131.0,0.09028]
[1767710237182,0.010624,94144.0,94122.0,0.09028]
[1767710237377,0.09821866,94145.0,94122.0,0.09028]
[1767710237574,0.09821866,94142.0,94122.0,0.09028]
[1767710239283,0.09829575,94140.0,94110.0,0.061524]
[1767710239473,0.010626,94131.0,94110.0,0.061524]
[1767710239683,0.09821866,94131.0,94110.0,0.09032]
[1767710239987,0.010626,94127.0,94110.0,0.09032]
[1767710240282,0.09821866,94118.0,94090.0,0.09352281]
[1767710240489,0.09821866,94116.0,94083.0,0.09032]
[1767710240686,0.09821866,94112.0,94083.0,0.09032]
[1767710240985,0.09829575,94111.0,94083.0,0.09032]
[1767710241186,0.09829575,94111.0,94080.0,0.09352281]
[1767710241481,0.09821866,94100.0,94079.0,0.00212588]
[1767710241686,0.09821866,94098.0,94079.0,0.00212588]
[1767710241879,7.709e-05,94099.0,94072.0,0.00013143]
[1767710241880,0.01063,94093.0,94072.0,0.00013143]
[1767710242199,0.09821866,94093.0,94072.0,0.00013143]
[1767710243987,7.709e-05,94099.0,94072.0,0.00013143]
[1767710244189,0.09032,94098.0,94084.0,0.010631]
[1767710244378,7.709e-05,94099.0,94085.0,0.010631]
[1767710244577,0.09032,94104.0,94082.0,0.061524]
[1767710244774,0.09032,94106.0,94082.0,0.061524]
[1767710244986,0.09821866,94111.0,94092.0,0.01063]
[1767710245182,0.09036,94112.0,94092.0,0.01063]
[1767710245575,0.09821866,94130.0,94094.0,0.15504681]
[1767710245781,0.10884466,94127.0,94096.0,0.072154]
[1767710246090,0.09036,94126.0,94105.0,0.010629]
[1767710246295,0.09036,94126.0,94101.0,0.010629]
[1767710246891,0.18857866,94126.0,94101.0,0.010629]
[1767710247091,0.18857866,94126.0,94097.0,0.15504681]
[1767710247278,0.18857866,94126.0,94108.0,0.010628]
[1767710247478,0.09036,94137.0,94113.0,0.061524]
[1767710247692,0.09036,94137.0,94117.0,0.010627]
[1767710248082,0.09036,94137.0,94113.0,0.061524]
[1767710248488,0.09036,94137.0,94122.0,0.010627]
[1767710248694,0.09036,94137.0,94116.0,0.15504681]
[1767710248993,0.09036,94145.0,94118.0,0.15504681]
[1767710249292,0.09036,94145.0,94123.0,0.010626]
[1767710250291,0.09036,94145.0,94118.0,0.15504681]
[1767710250292,0.09036,94145.0,94126.0,0.010626]
[1767710251196,0.09036,94145.0,94124.0,0.09036]
[1767710251197,0.010625,94141.0,94124.0,0.09036]
[1767710251487,0.09618677,94140.0,94121.0,0.09036]
[1767710251686,0.09618677,94140.0,94122.0,0.010627]
[1767710251886,0.010625,94136.0,94121.0,0.09036]
[1767710252088,0.10681177,94140.0,94121.0,0.09036]
[1767710252281,0.09118677,94140.0,94121.0,0.09036]
[1767710252479,0.09118677,94140.0,94122.0,0.010627]
[1767710252693,0.09118677,94140.0,94125.0,0.010626]
[1767710252890,0.09118677,94140.0,94116.0,0.010627]
[1767710253094,0.09118677,94140.0,94100.0,0.09298249]
[1767710253095,0.06244819,94136.0,94100.0,0.09298249]
[1767710253296,0.010626,94132.0,94105.0,0.010629]
[1767710253588,0.06244819,94136.0,94101.0,0.09036]
[1767710253589,0.06244819,94136.0,94101.0,0.24910644]
[1767710253789,0.010625,94140.0,94104.0,0.15424959]
[1767710253997,0.010625,94139.0,94108.0,0.15424959]
[1767710254193,0.09036,94145.0,94116.0,0.15424959]
[1767710254390,0.09618677,94150.0,94117.0,0.09036]
[1767710254596,0.18654677,94150.0,94122.0,0.0612671]
[1767710254790,0.06244819,94147.0,94120.0,0.010627]
[1767710255092,0.09036,94150.0,94132.0,0.010625]
[1767710255492,0.09036,94150.0,94127.0,0.010626]
[1767710256100,0.09036,94150.0,94129.0,0.010626]
[1767710256392,0.09036,94150.0,94132.0,0.010625]
[1767710256590,0.09036,94150.0,94128.0,0.09036]
[1767710256783,0.09036,94150.0,94128.0,0.100986]
[1767710257197,0.09618677,94145.0,94128.0,0.09036]
[1767710257592,0.1996,94154.0,94128.0,0.09036]
[1767710257794,0.09618677,94175.0,94160.0,0.010622]
[1767710257993,0.01062,94179.0,94153.0,0.09036]
[1767710258195,0.10680677,94179.0,94154.0,0.09036]
[1767710258503,0.15280819,94185.0,94154.0,0.09036]
[1767710258504,0.09618677,94174.0,94154.0,0.09036]
[1767710258687,0.15280819,94185.0,94140.0,0.010625]
[1767710258688,0.10680877,94168.0,94140.0,0.010625]
[1767710258891,0.010622,94162.0,94141.0,0.09036]
[1767710259096,0.010623,94159.0,94141.0,0.09036]
[1767710259491,0.09618677,94162.0,94146.0,0.010624]
[1767710259890,0.09831062,94169.0,94150.0,0.010623]
[1767710260098,0.09831062,94169.0,94146.0,0.075893]
[1767710260289,0.09831062,94169.0,94150.0,0.010623]
[1767710260490,0.10680877,94168.0,94146.0,0.075893]
[1767710260690,0.10680877,94168.0,94144.0,0.09036]
[1767710260895,0.010622,94166.0,94144.0,0.09036]
[1767710261100,0.10680877,94166.0,94144.0,0.09036]
[1767710261595,0.09618677,94166.0,94144.0,0.100984]
[1767710261795,0.09618677,94166.0,94147.0,0.010624]
[1767710261999,0.10680877,94166.0,94144.0,0.09036]
[1767710262201,0.010622,94164.0,94144.0,0.09036]
[1767710262700,0.010622,94162.0,94144.0,0.09036]
[1767710262901,0.010622,94162.0,94140.0,0.010625]
[1767710263200,0.09618677,94157.0,94134.0,0.010625]
[1767710263496,0.010623,94152.0,94135.0,0.09036]
[1767710263700,0.010623,94155.0,94135.0,0.09036]
[1767710263896,0.010622,94164.0,94135.0,0.09036]
[1767710264098,0.09618677,94162.0,94139.0,0.010625]
[1767710264301,0.09618677,94162.0,94130.0,0.22853332]
[1767710264302,0.010622,94162.0,94138.0,0.010625]
[1767710264501,0.09618677,94160.0,94135.0,0.010625]
[1767710264713,0.09618677,94158.0,94137.0,0.010625]
[1767710264901,0.09618677,94158.0,94130.0,0.09298249]
[1767710264902,0.09618677,94158.0,94131.0,0.010626]
[1767710265090,0.010623,94153.0,94132.0,0.09036]
[1767710265292,0.09618677,94156.0,94130.0,0.09298249]
[1767710265496,0.10680977,94152.0,94133.0,0.09036]
[1767710265697,0.09618677,94152.0,94134.0,0.010625]
[1767710265899,0.010622,94161.0,94139.0,0.010625]
[1767710266103,0.09618677,94162.0,94133.0,0.09036]
[1767710266104,0.09618677,94162.0,94136.0,0.0612671]
[1767710266302,0.09618677,94162.0,94133.0,0.09036]
[1767710266507,0.09618677,94156.0,94133.0,0.09036]
[1767710266705,0.010624,94149.0,94130.0,0.09298249]
[1767710267006,0.09618677,94147.0,94116.0,0.0612671]
[1767710267205,0.09618677,94140.0,94117.0,0.09036]
[1767710267406,0.010625,94136.0,94117.0,0.09036]
[1767710267711,0.09618677,94140.0,94117.0,0.09036]
[1767710267902,0.09618677,94140.0,94120.0,0.010627]
[1767710268602,0.09618677,94140.0,94117.0,0.09036]
[1767710268603,0.10681177,94140.0,94117.0,0.09036]
[1767710269202,0.09618677,94137.0,94114.0,0.010628]
[1767710269396,0.09618677,94137.0,94115.0,0.09036]
[1767710269597,0.09618677,94137.0,94109.0,0.00212521]
[1767710269813,0.10681177,94135.0,94110.0,0.2502613]
[1767710270311,0.10681177,94135.0,94110.0,0.2608893]
[1767710270611,0.10681177,94135.0,94110.0,0.2502613]
[1767710270803,0.10681177,94135.0,94111.0,0.010628]
[1767710271203,0.010626,94133.0,94110.0,0.09036]
[1767710271510,0.010624,94148.0,94110.0,0.09036]
[1767710271511,0.09618677,94128.0,94110.0,0.09036]
[1767710271807,0.010627,94122.0,94110.0,0.09036]
[1767710272008,0.09618677,94118.0,94094.0,0.01063]
[1767710272213,0.09036,94128.0,94082.0,0.07518202]
[1767710272214,0.09618677,94113.0,94084.0,0.0612671]
[1767710272509,0.09618677,94110.0,94087.0,0.15999905]
[1767710272700,0.09618677,94110.0,94085.0,0.09036]
[1767710273009,0.09618677,94110.0,94090.0,0.00563]
[1767710273203,0.09618677,94110.0,94093.0,0.01063]
[1767710273403,0.09618677,94110.0,94086.0,0.010631]
[1767710273708,0.10681477,94107.0,94085.0,0.09036]
[1767710273907,0.09618677,94107.0,94086.0,0.09036]
[1767710274107,0.09618677,94107.0,94076.0,0.0612671]
[1767710274308,0.01063,94094.0,94080.0,0.09036]
[1767710274708,0.10681677,94094.0,94080.0,0.09036]
[1767710275010,0.09036,94104.0,94073.0,0.09036]
[1767710275011,0.10681677,94092.0,94073.0,0.09036]
[1767710275213,0.06244819,94099.0,94073.0,0.09036]
[1767710275214,0.10681677,94088.0,94073.0,0.09036]
[1767710275416,0.09618677,94088.0,94073.0,0.09036]
[1767710276407,0.01063,94095.0,94073.0,0.09036]
[1767710276604,0.09928188,94095.0,94073.0,0.09036]
[1767710277399,0.01063,94094.0,94073.0,0.09036]
[1767710277914,0.010629,94104.0,94079.0,0.07097782]
[1767710278211,0.09928188,94104.0,94079.0,0.06034682]
[1767710278520,0.09928188,94104.0,94079.0,0.07097882]
[1767710278706,0.010629,94102.0,94079.0,0.06034682]
[1767710278908,0.09928188,94104.0,94079.0,0.06034682]
[1767710279115,0.09928188,94104.0,94084.0,0.010631]
[1767710280004,0.09928188,94104.0,94085.0,0.09036]
[1767710280315,0.09928188,94115.0,94086.0,0.06034682]
[1767710280615,0.010627,94119.0,94093.0,0.06034682]
[1767710280805,0.09928188,94123.0,94094.0,0.06034682]
[1767710281011,0.09928188,94139.0,94114.0,0.010627]
[1767710281208,0.09267267,94137.0,94111.0,0.09036]
[1767710281714,0.18303267,94145.0,94123.0,0.010626]
[1767710282020,0.18303267,94145.0,94123.0,0.09036]
[1767710282210,0.010624,94144.0,94123.0,0.09036]
[1767710282406,0.09267267,94144.0,94123.0,0.100987]
[1767710282613,0.10329567,94153.0,94123.0,0.14723906]
[1767710282807,0.09267267,94144.0,94115.0,0.05687906]
[1767710283012,0.00212453,94139.0,94116.0,0.09036]
[1767710283209,0.00212453,94139.0,94118.0,0.010627]
[1767710283410,0.00212453,94139.0,94121.0,0.010627]
[1767710283719,0.00212453,94139.0,94117.0,0.010627]
[1767710283912,0.00212453,94139.0,94102.0,0.07518202]
[1767710283913,0.0947972,94139.0,94106.0,0.05687906]
[1767710284109,0.0947972,94139.0,94108.0,0.05687906]
[1767710284917,0.09267267,94137.0,94112.0,0.010628]
[1767710285321,0.09267267,94137.0,94108.0,0.05687906]
[1767710285524,0.09267267,94137.0,94109.0,0.010628]
[1767710285720,0.09267267,94137.0,94109.0,0.16992435]
[1767710286113,0.09267267,94137.0,94112.0,0.010628]
[1767710286708,0.09267267,94137.0,94109.0,0.05687906]
[1767710286913,0.09267267,94137.0,94114.0,0.05687906]
[1767710287113,0.09267267,94137.0,94107.0,0.09036]
[1767710287315,0.09267267,94137.0,94113.0,0.010628]
[1767710287510,0.09267267,94135.0,94109.0,0.010628]
[1767710287711,0.09267267,94135.0,94119.0,0.010627]
[1767710287918,0.09267267,94135.0,94119.0,0.09036]
[1767710288321,0.00212453,94139.0,94119.0,0.14723906]
[1767710288622,0.09267267,94171.0,94149.0,0.010624]
[1767710288829,0.06094949,94188.0,94148.0,0.05687906]
[1767710289119,0.010621,94176.0,94147.0,0.09036]
[1767710289328,0.06094949,94182.0,94154.0,0.010623]
[1767710289624,0.06094949,94182.0,94157.0,0.010623]
[1767710289921,0.06094949,94179.0,94143.0,0.15135846]
[1767710290220,0.01062,94186.0,94156.0,0.010623]
[1767710290426,0.01062,94183.0,94157.0,0.010623]
[1767710290627,0.09036,94188.0,94157.0,0.010623]
[1767710290919,0.01062,94181.0,94157.0,0.010623]
[1767710291124,0.09267267,94178.0,94154.0,0.010623]
[1767710291624,0.09267267,94166.0,94144.0,0.09036]
[1767710292012,0.09267267,94162.0,94144.0,0.09036]
[1767710292414,0.09267267,94162.0,94130.0,0.05687906]
[1767710292727,0.09267267,94162.0,94129.0,0.16966142]
[1767710292728,0.09267267,94162.0,94135.0,0.05687906]